fUSD/lending_fUSD_20260217
["ID","MTS","AMOUNT","RATE_DAILY","PERIOD"]
[405818633,1771336245466,-3099.28707761,0.00015817,2]
[405818634,1771336245476,-299.40346672,0.00015817,2]
[405818635,1771336245486,-250.0,0.00015817,2]
[405818636,1771336245495,-250.0,0.00015817,2]
[405818637,1771336245505,-250.0,0.00015817,2]
[405818638,1771336245514,-250.0,0.00015817,2]
[405818639,1771336245524,-250.0,0.00015817,2]
[405818640,1771336245533,-302.70619241,0.00015817,2]
[405818641,1771336245543,-209.40437684,0.00015817,2]
[405818642,1771336245553,-1000.0,0.00015817,2]
[405818643,1771336245563,-1000.0,0.00015817,2]
[405818644,1771336245572,-526.36214318,0.00015817,2]
[405818645,1771336245581,-578.20924308,0.00015817,2]
[405818646,1771336245591,-200.0,0.00015817,2]
[405818647,1771336245600,-250.0,0.00015817,2]
[405818648,1771336245609,-250.0,0.00015817,2]
[405818649,1771336245619,-721.12765535,0.00015817,2]
[405818650,1771336245628,-250.0,0.00015817,2]
[405818651,1771336245638,-250.0,0.00015817,2]
[405818652,1771336245647,-250.0,0.00015817,2]
[405818653,1771336245656,-250.0,0.00015817,2]
[405818654,1771336245665,-250.0,0.00015817,2]
[405818655,1771336245675,-151.0,0.00015817,2]
[405818656,1771336245685,-250.0,0.00015817,2]
[405818657,1771336245694,-250.0,0.00015817,2]
[405818658,1771336245703,-250.0,0.00015817,2]
[405818659,1771336245712,-250.0,0.00015817,2]
[405818660,1771336245722,-250.0,0.00015817,2]
[405818661,1771336245732,-250.0,0.00015817,2]
[405818662,1771336245742,-250.0,0.00015817,2]
[405818663,1771336245751,-250.0,0.00015817,2]
[405818664,1771336245761,-250.0,0.00015817,2]
[405818665,1771336245770,-151.12957794,0.00015817,2]
[405818666,1771336245780,-250.0,0.00015817,2]
[405818667,1771336245789,-250.0,0.00015817,2]
[405818668,1771336245799,-250.0,0.00015817,2]
[405818669,1771336245808,-250.0,0.00015817,2]
[405818670,1771336245818,-253.83621088,0.00015817,2]
[405818671,1771336245829,-291.48891739,0.00015817,2]
[405818672,1771336245842,-250.0,0.00015817,2]
[405818673,1771336245852,-250.0,0.00015817,2]
[405818674,1771336245865,-250.0,0.00015817,2]
[405818675,1771336245875,-250.0,0.00015817,2]
[405818676,1771336245887,-3000.0,0.00015817,2]
[405818677,1771336245897,-3000.0,0.00015817,2]
[405818678,1771336245906,-1070.81608438,0.00015817,2]
[405818679,1771336245916,-162.380719,0.00015817,2]
[405818680,1771336245926,-693.3919763,0.00015817,2]
[405818681,1771336245938,-500.0,0.00015817,2]
[405818682,1771336245948,-500.0,0.00015817,2]
[405818683,1771336245958,-500.0,0.00015817,2]
[405818684,1771336245967,-500.0,0.00015817,2]
[405818685,1771336245977,-500.0,0.00015817,2]
[405818686,1771336245986,-500.0,0.00015817,2]
[405818687,1771336245996,-500.0,0.00015817,2]
[405818688,1771336246006,-500.0,0.00015817,2]
[405818689,1771336246015,-500.0,0.00015817,2]
[405818690,1771336246025,-500.0,0.00015817,2]
[405818691,1771336246035,-500.0,0.00015817,2]
[405818692,1771336246045,-500.0,0.00015817,2]
[405818693,1771336246055,-500.0,0.00015817,2]
[405818694,1771336246064,-500.0,0.00015817,2]
[405818695,1771336246074,-500.0,0.00015817,2]
[405818696,1771336246083,-500.0,0.00015817,2]
[405818697,1771336246092,-500.0,0.00015817,2]
[405818698,1771336246101,-500.0,0.00015817,2]
[405818699,1771336246111,-500.0,0.00015817,2]
[405818700,1771336246120,-500.0,0.00015817,2]
[405818701,1771336246130,-1000.0,0.00015861,7]
[405818702,1771336246139,-9905.5980765,0.00015872,2]
[405818703,1771336246148,-151.0,0.00015872,2]
[405818704,1771336246158,-719.04747942,0.00015872,2]
[405818705,1771336246168,-776.66,0.0001591,2]
[405818706,1771336246177,-10272.10520533,0.00015927,2]
[405818707,1771336246190,-151.0,0.00015927,2]
[405818708,1771336246200,-745.65223616,0.00015927,2]
[405818709,1771336246210,-5000.0,0.0001596,2]
[405818710,1771336246219,-2125.36664557,0.00015982,2]
[405818711,1771336246228,-151.0,0.00015982,2]
[405818712,1771336246238,-773.2413689,0.00015982,2]
[405818713,1771336246247,-152.85835457,0.00016,2]
[405818714,1771336246256,-151.0,0.00016037,2]
[405818715,1771336246266,-801.85129955,0.00016037,2]
[405818716,1771336246276,-484.11558281,0.0001604,2]
[405818717,1771336246285,-151.0,0.00016092,2]
[405818718,1771336246295,-831.51979763,0.00016092,2]
[405818719,1771336246304,-7910.59,0.00016116,2]
[405818720,1771336246313,-151.0,0.00016147,2]
[405818721,1771336246323,-862.28603014,0.00016147,2]
[405818722,1771336246332,-832.04,0.00016184,2]
[405818723,1771336246342,-500.0,0.00016199,2]
[405818724,1771336246352,-500.0,0.00016199,2]
[405818725,1771336246361,-500.0,0.00016199,2]
[405818726,1771336246371,-286.9609652,0.00016199,2]
[405818727,1771336246380,-669.78,0.00016199,2]
[405818728,1771336246390,-669.78,0.00016199,2]
[405818729,1771336246399,-763.46,0.00016199,2]
[405818730,1771336246409,-763.46,0.00016199,2]
[405818731,1771336246419,-669.19,0.00016199,2]
[405818732,1771336246428,-669.19,0.00016199,2]
[405818733,1771336246440,-500.0,0.00016199,2]
[405818734,1771336246450,-500.0,0.00016199,2]
[405818735,1771336246460,-150.0,0.000162,2]
[405818736,1771336246469,-151.0,0.00016202,2]
[405818737,1771336246479,-894.19061326,0.00016202,2]
[405818738,1771336246488,-151.0,0.00016257,2]
[405818739,1771336246498,-927.27566595,0.00016257,2]
[405818740,1771336246507,-5736.12832918,0.00016269,2]
[405818741,1771336246517,-151.0,0.00016312,2]
[405818742,1771336246527,-961.58486559,0.00016312,2]
[405818743,1771336246537,-771.01748645,0.00016365,2]
[405818744,1771336246547,-527.32864652,0.00016365,2]
[405818745,1771336246557,-184.18279927,0.00016365,2]
[405818746,1771336246567,-217.15233878,0.00016365,2]
[405818747,1771336246577,-204.10289238,0.00016365,2]
[405818748,1771336246587,-200.0,0.00016365,2]
[405818749,1771336246598,-151.0,0.00016367,2]
[405818750,1771336246609,-997.16350561,0.00016367,2]
[405818751,1771336246620,-151.0,0.00016422,2]
[405818752,1771336246630,-150.0,0.00016425,2]
[405818753,1771336246640,-2045.7,0.00016438,2]
[405818754,1771336246650,-151.0,0.00016477,2]
[405818755,1771336246660,-151.0,0.00016532,2]
[405818756,1771336246671,-267.05598539,0.00016587,2]
[405818757,1771336246682,-11526.71888631,0.00016631,2]
[405818758,1771336246699,-4404.28537215,0.00016643,2]
[405818759,1771336246712,-150.0,0.0001665,2]
[405818760,1771336246722,-150.0,0.00016875,2]
[405818761,1771336246733,-495.13183978,0.00016913,2]
[405818762,1771336246743,-225.18697532,0.00016913,2]
[405818763,1771336246753,-173.0767049,0.00016979,2]
[405818764,1771336246763,-500.0,0.00016999,2]
[405818765,1771336246774,-371.44518201,0.00016999,2]
[405818766,1771336246785,-669.78,0.00016999,2]
[405818767,1771336246795,-669.78,0.00016999,2]
[405818768,1771336246805,-669.78,0.00016999,2]
[405818769,1771336246816,-669.78,0.00016999,2]
[405818770,1771336246826,-669.78,0.00016999,2]
[405818771,1771336246840,-669.85168694,0.00016999,2]
[405818772,1771336246850,-763.46,0.00016999,2]
[405818773,1771336246861,-763.46,0.00016999,2]
[405818774,1771336246871,-763.46,0.00016999,2]
[405818775,1771336246882,-763.46,0.00016999,2]
[405818776,1771336246892,-763.46,0.00016999,2]
[405818777,1771336246903,-763.6674779,0.00016999,2]
[405818778,1771336246913,-669.19,0.00016999,2]
[405818779,1771336246922,-669.19,0.00016999,2]
[405818780,1771336246932,-669.19,0.00016999,2]
[405818781,1771336246950,-669.19,0.00016999,2]
[405818782,1771336246960,-669.19,0.00016999,2]
[405818783,1771336246970,-669.29,0.00016999,2]
[405818784,1771336246980,-505.24249427,0.00016999,2]
[405818785,1771336246990,-173.57638878,0.00017,7]
[405818786,1771336247000,-300.0,0.00017,2]
[405818787,1771336247010,-150.0,0.000171,2]
[405818788,1771336247021,-160.32510575,0.00017186,2]
[405818789,1771336247030,-168.3888056,0.00017186,2]
[405818790,1771336247040,-267.0,0.00017235,3]
[405818791,1771336247050,-150.0,0.00017325,2]
[405818792,1771336247059,-233.51889341,0.00017461,2]
[405818793,1771336247069,-150.0,0.0001755,2]
[405818794,1771336247078,-1088.37215301,0.00017596,2]
[405818795,1771336247088,-473.31058807,0.00017597,2]
[405818796,1771336247098,-258.29145491,0.00017674,2]
[405818797,1771336247108,-265.56589159,0.00017685,2]
[405818798,1771336247118,-500.0,0.00017699,2]
[405818799,1771336247128,-500.0,0.00017699,2]
[405818800,1771336247138,-500.0,0.00017699,2]
[405818801,1771336247148,-150.0,0.00017699,2]
[405818802,1771336247157,-500.0,0.00017754,2]
[405818803,1771336247167,-500.0,0.00017754,2]
[405818804,1771336247176,-649.65624143,0.00017754,2]
[405818805,1771336247189,-205.12968692,0.00017754,2]
[405818806,1771336247199,-150.0,0.00017775,2]
[405818807,1771336247209,-444.64,0.00017808,2]
[405818808,1771336247219,-800.0,0.00017808,2]
[405818809,1771336247229,-500.0,0.00017809,2]
[405818810,1771336247239,-500.0,0.00017809,2]
[405818811,1771336247248,-500.0,0.00017856,2]
[405818812,1771336247258,-200.0,0.00017856,2]
[405818813,1771336247268,-500.0,0.00017863,2]
[405818814,1771336247277,-500.0,0.00017863,2]
[405818815,1771336247288,-4404.28537215,0.000179,2]
[405818816,1771336247297,-11526.71888631,0.000179,2]
[405818817,1771336247307,-875.94052203,0.000179,2]
[405818818,1771336247317,-10040.43634857,0.000179,2]
[405818819,1771336247326,-5550.94006046,0.000179,2]
[405818820,1771336247335,-5736.12832918,0.000179,2]
[405818821,1771336247345,-500.0,0.00017918,2]
[405818822,1771336247355,-500.0,0.00017918,2]
[405818823,1771336247364,-500.0,0.00017918,2]
[405818824,1771336247374,-500.0,0.00017918,2]
[405818825,1771336247384,-336.0,0.00017918,2]
[405818826,1771336247394,-153.2248447,0.00017918,2]
[405818827,1771336247404,-500.0,0.00017918,2]
[405818828,1771336247414,-550.98049433,0.00017931,7]
[405818829,1771336247424,-10000.0,0.00017973,2]
[405818830,1771336247512,-500.0,0.00017973,2]
[405818831,1771336247522,-500.0,0.00017973,2]
[405818832,1771336247532,-500.0,0.00017973,2]
[405818833,1771336247542,-200.47317568,0.00017973,2]
[405818834,1771336247551,-500.0,0.00017973,2]
[405818835,1771336247561,-616.27940406,0.00017973,2]
[405818836,1771336247570,-500.0,0.00017973,2]
[405818837,1771336247579,-500.0,0.00017973,2]
[405818838,1771336247588,-500.92273853,0.00017973,2]
[405818839,1771336247598,-501.87877687,0.00017973,2]
[405818840,1771336247607,-500.0,0.00017973,2]
[405818841,1771336247616,-500.99084636,0.00017973,2]
[405818842,1771336247625,-501.16561669,0.00017973,2]
[405818843,1771336247635,-576.17743239,0.00017973,2]
[405818844,1771336247644,-500.0,0.00017973,2]
[405818845,1771336247653,-500.0,0.00017973,2]
[405818846,1771336247663,-502.28996963,0.00017973,2]
[405818847,1771336247672,-500.49232584,0.00017973,2]
[405818848,1771336247682,-501.30003564,0.00017973,2]
[405818849,1771336247694,-502.93062154,0.00017973,2]
[405818850,1771336247703,-500.0,0.00017973,2]
[405818851,1771336247713,-500.78926699,0.00017973,2]
[405818852,1771336247722,-501.19336198,0.00017973,2]
[405818853,1771336247731,-500.0,0.00017973,2]
[405818854,1771336247741,-436.04334629,0.00017973,2]
[405818855,1771336247751,-502.0189328,0.00017973,2]
[405818856,1771336247760,-160.57193954,0.00017973,2]
[405818857,1771336247770,-316.58859714,0.00017973,2]
[405818858,1771336247779,-501.62990348,0.00017973,2]
[405818859,1771336247789,-501.06776568,0.00017973,2]
[405818860,1771336247798,-500.37289489,0.00017973,2]
[405818861,1771336247808,-160.55921798,0.00017973,2]
[405818862,1771336247817,-501.15252026,0.00017973,2]
[405818863,1771336247826,-501.05628867,0.00017973,2]
[405818864,1771336247838,-500.0,0.00017973,2]
[405818865,1771336247848,-503.33191464,0.00017973,2]
[405818866,1771336247858,-500.0,0.00017973,2]
[405818867,1771336247870,-501.89281575,0.00017973,2]
[405818868,1771336247881,-500.0,0.00017973,2]
[405818869,1771336247890,-504.66274009,0.00017973,2]
[405818870,1771336247900,-502.37992604,0.00017973,2]
[405818871,1771336247910,-500.0,0.00017973,2]
[405818872,1771336247919,-500.67013055,0.00017973,2]
[405818873,1771336247929,-507.8750377,0.00017973,2]
[405818874,1771336247941,-501.06962982,0.00017973,2]
[405818875,1771336247951,-500.0,0.00017973,2]
[405818876,1771336247961,-501.59728131,0.00017973,2]
[405818877,1771336247971,-500.0,0.00017973,2]
[405818878,1771336247980,-501.78719611,0.00017973,2]
[405818879,1771336247990,-500.0,0.00017973,2]
[405818880,1771336247999,-500.0,0.00017973,2]
[405818881,1771336248008,-500.60659592,0.00017973,2]
[405818882,1771336248018,-579.41896786,0.00017973,2]
[405818883,1771336248027,-504.49684223,0.00017973,2]
[405818884,1771336248036,-500.0,0.00017973,2]
[405818885,1771336248046,-947.1253165,0.00017982,2]
[405818886,1771336248055,-1069.5371637,0.0001799,2]
[405818887,1771336248064,-1062.34374872,0.00017998,5]
[405818888,1771336248073,-1062.34374872,0.00017999,5]
[405818889,1771336248083,-1062.34374874,0.00017999,5]
[405818890,1771336248092,-300.0,0.00017999,2]
[405818891,1771336248102,-666.0,0.00017999,2]
[405818892,1771336248111,-300.0,0.00017999,2]
[405818893,1771336248120,-666.0,0.00017999,2]
[405818894,1771336248129,-300.0,0.00017999,2]
[405818895,1771336248138,-666.0,0.00017999,2]
[405818896,1771336248148,-300.0,0.00017999,2]
[405818897,1771336248157,-150.0,0.00017999,2]
[405818898,1771336248167,-150.0,0.00017999,2]
[405818899,1771336248176,-269.76817122,0.00017999,2]
[405818900,1771336248188,-28610.11146738,0.00017999,2]
[405818901,1771336248199,-19884.37497137,0.00018,2]
[405818902,1771336248208,-262.13935403,0.00018,2]
[405818903,1771336248217,-4383302.97076192,0.00018,2]
[405818904,1771336248952,707.0,0.00018,30]
[405818905,1771336248998,-8481677.20991925,0.00018,2]
[405818906,1771336249178,-3365.90924109,0.00018,2]
[405818907,1771336249191,-1704.93814239,0.00018,2]
[405818908,1771336249214,-30078.55191844,0.00018,2]
[405818909,1771336249824,-1005.68201699,0.00018,2]
[405818910,1771336280790,10000.01,6.558e-05,2]
[405818911,1771336280816,10000.01,6.558e-05,2]
[405818913,1771336495266,1000.0,0.0001,5]
[405818914,1771336543368,319.59,6.5e-05,2]
[405818915,1771336549034,2414.20752868,6.4e-05,3]
[405818916,1771336549082,3772.73204589,6.4e-05,3]
[405818917,1771336549125,3433.10091659,6.4e-05,3]
[405818918,1771336549162,4112.36317519,6.4e-05,3]
[405818919,1771336583479,3434.5,5.979e-05,2]
[405818920,1771336785347,150.0,0.00011164,7]
[405818923,1771336906691,264.79,6.5e-05,2]
[405818925,1771336963857,170.83,4.818e-05,2]
[405818926,1771336964140,170.83,5.3e-05,2]
[405818927,1771336964349,170.83,5.782e-05,2]
[405818928,1771336964556,170.83,6.264e-05,2]
[405818929,1771337056916,5297.81,5.988e-05,2]
[405818930,1771337056938,3852.93,5.988e-05,2]
[405818933,1771337171773,500.0,5.966e-05,2]
[405818934,1771337177492,-207.0,6.519e-05,2]
[405818935,1771337177515,-450.0,6.52e-05,2]
[405818936,1771337177535,-266.0,6.52e-05,2]
[405818937,1771337177558,-1200.0,6.52e-05,2]
[405818938,1771337177580,-300.0,6.52e-05,2]
[405818939,1771337177603,-150.0,6.52e-05,2]
[405818940,1771337177626,-2027.0,6.521e-05,2]
[405818941,1771337210316,500.0,6.419e-05,2]
[405818942,1771337220156,-2027.01,6.521e-05,2]
[405818943,1771337220519,-4054.02,6.521e-05,2]
[405818944,1771337220650,-1891.97,6.521e-05,2]
[405818945,1771337223336,-300.0,6.52e-05,2]
[405818946,1771337223628,-8601.1,6.521e-05,2]
[405818947,1771337226085,-10000.01,6.521e-05,2]
[405818948,1771337226251,-2687.12,6.521e-05,2]
[405818949,1771337226278,-4625.77,6.521e-05,2]
[405818955,1771337259578,158.87,6.5e-05,2]
[405818956,1771337367273,500.0,6.419e-05,2]
[405818957,1771337370038,247.92,5.971e-05,2]
[405818960,1771337431469,-250.0,6.539e-05,2]
[405818961,1771337431478,-300.0,6.556e-05,2]
[405818962,1771337431487,-613.59454315,6.556e-05,2]
[405818963,1771337431529,-586.40545685,6.556e-05,2]
[405818964,1771337431539,-932.38650127,6.557e-05,2]
[405818965,1771337431550,-129.95724745,6.557e-05,2]
[405818966,1771337431559,-820.73956931,6.557e-05,2]
[405818967,1771337431590,-241.60417941,6.557e-05,2]
[405818968,1771337431600,-1062.34374872,6.557e-05,2]
[405818969,1771337431609,-696.05207188,6.557e-05,2]
[405818970,1771337431621,-366.29167684,6.557e-05,2]
[405818971,1771337431630,-1062.34374872,6.557e-05,2]
[405818972,1771337431640,-1062.34374872,6.557e-05,2]
[405818973,1771337431649,-614.16,6.656e-05,2]
[405818974,1771337431658,-614.16,6.718e-05,2]
[405818975,1771337431668,-170.83,6.746e-05,2]
[405818976,1771337431677,-150.0,6.777e-05,2]
[405818977,1771337431687,-437.69360142,6.778e-05,2]
[405818978,1771337431696,-92.97513135,6.778e-05,2]
[405818979,1771337431719,-407.02486865,6.778e-05,2]
[405818981,1771337431728,-500.0,6.778e-05,2]
[405818983,1771337431738,-492.97513135,6.778e-05,2]
[405818985,1771337431748,-7.02486865,6.778e-05,2]
[405818987,1771337431758,-500.0,6.778e-05,2]
[405818989,1771337431767,-500.0,6.778e-05,2]
[405818991,1771337431776,-317.66537435,6.778e-05,2]
[405818993,1771337431785,-500.0,6.778e-05,2]
[405818995,1771337431794,-500.0,6.778e-05,2]
[405818996,1771337431803,-500.0,6.778e-05,2]
[405818997,1771337431813,-500.0,6.778e-05,2]
[405818998,1771337431823,-500.0,6.778e-05,2]
[405818999,1771337431832,-500.0,6.778e-05,2]
[405819001,1771337431842,-500.0,6.778e-05,2]
[405819002,1771337431851,-500.0,6.778e-05,2]
[405819003,1771337431861,-500.0,6.778e-05,2]
[405819004,1771337431870,-500.0,6.778e-05,2]
[405819005,1771337431883,-500.0,6.778e-05,2]
[405819006,1771337431893,-500.0,6.778e-05,2]
[405819007,1771337431902,-500.0,6.778e-05,2]
[405819008,1771337431912,-500.0,6.778e-05,2]
[405819009,1771337431921,-500.0,6.778e-05,2]
[405819010,1771337431932,-500.0,6.778e-05,2]
[405819011,1771337431941,-500.0,6.778e-05,2]
[405819012,1771337431951,-500.0,6.778e-05,2]
[405819013,1771337431961,-500.0,6.778e-05,2]
[405819014,1771337431971,-500.0,6.778e-05,2]
[405819015,1771337431980,-500.0,6.778e-05,2]
[405819016,1771337431990,-500.0,6.778e-05,2]
[405819017,1771337431999,-500.0,6.778e-05,2]
[405819018,1771337432008,-150.99,6.778e-05,2]
[405819019,1771337432018,-9999.99,6.778e-05,2]
[405819020,1771337432027,-500.0,6.778e-05,2]
[405819021,1771337432037,-500.0,6.778e-05,2]
[405819022,1771337432046,-500.0,6.778e-05,2]
[405819023,1771337432055,-500.0,6.778e-05,2]
[405819024,1771337432064,-500.0,6.778e-05,2]
[405819025,1771337432074,-500.0,6.778e-05,2]
[405819026,1771337432083,-500.0,6.778e-05,2]
[405819027,1771337432093,-500.0,6.778e-05,2]
[405819028,1771337432102,-500.0,6.778e-05,2]
[405819029,1771337432111,-500.0,6.778e-05,2]
[405819030,1771337432120,-500.0,6.778e-05,2]
[405819031,1771337432129,-500.0,6.778e-05,2]
[405819032,1771337432139,-500.0,6.778e-05,2]
[405819033,1771337432152,-250.0,6.778e-05,2]
[405819034,1771337432161,-299.99,6.779e-05,2]
[405819035,1771337432171,-999.99,6.779e-05,2]
[405819036,1771337432180,-428.14262966,6.779e-05,2]
[405819037,1771337432203,-71.84737034,6.779e-05,2]
[405819038,1771337432213,-9999.99,6.779e-05,2]
[405819039,1771337432224,-150.99,6.779e-05,2]
[405819040,1771337432233,-9999.99,6.779e-05,2]
[405819041,1771337432242,-65948.58,6.779e-05,2]
[405819042,1771337432251,-9999.99,6.779e-05,2]
[405819043,1771337432261,-5914.98,6.779e-05,2]
[405819044,1771337432270,-1184.93,6.779e-05,2]
[405819045,1771337432279,-591.70190127,6.779e-05,2]
[405819046,1771337432315,-578.76427702,6.779e-05,2]
[405819047,1771337432326,-732.63643084,6.779e-05,2]
[405819052,1771337437799,-3445.85,6.779e-05,2]
[405819053,1771337437811,-4651.03739087,6.779e-05,2]
[405819054,1771337437820,-349.65,6.779e-05,2]
[405819055,1771337437830,-614.16,6.779e-05,2]
[405819056,1771337437839,-1259.0,6.813e-05,2]
[405819057,1771337437849,-310.0,6.818e-05,2]
[405819058,1771337437859,-614.16,6.841e-05,2]
[405819059,1771337437869,-272.14970002,6.842e-05,2]
[405819060,1771337437878,-196.0,6.844e-05,2]
[405819061,1771337437887,-1396.0,6.846e-05,2]
[405819062,1771337437897,-960.0,6.859e-05,2]
[405819063,1771337437906,-1469.0,6.873e-05,2]
[405819064,1771337437915,-1211.0,6.887e-05,2]
[405819065,1771337437924,-422.0,6.895e-05,2]
[405819067,1771337437934,-283.60602185,6.896e-05,2]
[405819068,1771337437943,-1062.34374872,6.896e-05,2]
[405819069,1771337437952,-188398.19768633,6.897e-05,2]
[405819070,1771337437963,-690.45,6.897e-05,2]
[405819071,1771337437988,-215595.79231367,6.897e-05,2]
[405819072,1771337437998,-614.16,6.903e-05,2]
[405819073,1771337438007,-453.0,6.909e-05,2]
[405819074,1771337438016,-227.0,6.922e-05,2]
[405819076,1771337438025,-614.16,6.965e-05,2]
[405819078,1771337438034,-614.16,7.027e-05,2]
[405819080,1771337438043,-1000.0,7.082e-05,2]
[405819082,1771337438052,-614.16,7.088e-05,2]
[405819083,1771337438062,-614.16,7.15e-05,2]
[405819084,1771337438072,-250.0,7.171e-05,2]
[405819087,1771337438082,-250.0,7.173e-05,2]
[405819088,1771337438092,-614.16,7.212e-05,2]
[405819090,1771337438102,-420.0,7.212e-05,2]
[405819092,1771337438111,-1680.0,7.212e-05,2]
[405819094,1771337438122,-170.83,7.228e-05,2]
[405819096,1771337438131,-614.16,7.274e-05,2]
[405819099,1771337438142,-614.16,7.336e-05,2]
[405819101,1771337438155,-614.16,7.397e-05,2]
[405819103,1771337438164,-255.0,7.455e-05,2]
[405819105,1771337438174,-614.16,7.459e-05,2]
[405819107,1771337438183,-614.16,7.521e-05,2]
[405819108,1771337438192,-614.16,7.583e-05,2]
[405819110,1771337438201,-614.16,7.645e-05,2]
[405819112,1771337438210,-38674.68,7.671e-05,2]
[405819114,1771337438220,-614.16,7.706e-05,2]
[405819116,1771337438231,-614.16,7.768e-05,2]
[405819118,1771337438241,-313.19,7.79e-05,2]
[405819120,1771337438250,-614.16,7.83e-05,2]
[405819121,1771337438260,-587.0,7.933e-05,2]
[405819122,1771337438269,-2351.0,7.933e-05,2]
[405819123,1771337438279,-3358.663823,7.945e-05,2]
[405819124,1771337438288,-500.0,8e-05,2]
[405819125,1771337438297,-1457.953487,8.178e-05,2]
[405819126,1771337438306,-433.0,8.201e-05,2]
[405819127,1771337438316,-150.0,8.219e-05,2]
[405819128,1771337438325,-154.86539372,8.219e-05,2]
[405819129,1771337438335,-500.0,8.219e-05,2]
[405819130,1771337438344,-500.0,8.219e-05,2]
[405819131,1771337438353,-500.0,8.219e-05,2]
[405819132,1771337438363,-500.0,8.219e-05,2]
[405819133,1771337438373,-500.0,8.219e-05,2]
[405819134,1771337438383,-500.0,8.219e-05,2]
[405819135,1771337438392,-496.0,8.219e-05,2]
[405819136,1771337438401,-500.0,8.219e-05,2]
[405819137,1771337438410,-500.0,8.219e-05,2]
[405819138,1771337438420,-481.42021043,8.219e-05,2]
[405819139,1771337438429,-150.0,8.219e-05,2]
[405819140,1771337438439,-500.0,8.219e-05,2]
[405819141,1771337438448,-637.0,8.219e-05,2]
[405819142,1771337438458,-150.0,8.219e-05,2]
[405819143,1771337438467,-500.0,8.219e-05,2]
[405819144,1771337438476,-500.0,8.219e-05,2]
[405819145,1771337438486,-150.0,8.219e-05,2]
[405819146,1771337438495,-150.0,8.219e-05,2]
[405819147,1771337438504,-150.0,8.219e-05,2]
[405819148,1771337438514,-150.0,8.219e-05,2]
[405819149,1771337438523,-500.0,8.219e-05,2]
[405819150,1771337438533,-500.0,8.219e-05,2]
[405819151,1771337438542,-150.0,8.219e-05,2]
[405819152,1771337438551,-500.0,8.219e-05,2]
[405819153,1771337438560,-500.0,8.219e-05,2]
[405819154,1771337438569,-150.0,8.219e-05,2]
[405819155,1771337438579,-500.0,8.219e-05,2]
[405819156,1771337438588,-500.0,8.219e-05,2]
[405819157,1771337438598,-500.0,8.219e-05,2]
[405819158,1771337438607,-500.0,8.219e-05,2]
[405819159,1771337438616,-150.0,8.219e-05,2]
[405819160,1771337438628,-150.0,8.219e-05,2]
[405819161,1771337438637,-500.0,8.219e-05,2]
[405819162,1771337438647,-150.0,8.219e-05,2]
[405819163,1771337438656,-150.0,8.219e-05,2]
[405819164,1771337438666,-212.143648,8.219e-05,2]
[405819165,1771337438675,-274.287296,8.219e-05,2]
[405819166,1771337438685,-336.430945,8.219e-05,2]
[405819167,1771337438695,-398.574593,8.219e-05,2]
[405819168,1771337438704,-460.718242,8.219e-05,2]
[405819169,1771337438714,-522.86189,8.219e-05,2]
[405819170,1771337438723,-585.005539,8.219e-05,2]
[405819171,1771337438733,-647.149187,8.219e-05,2]
[405819172,1771337438742,-709.292836,8.219e-05,2]
[405819173,1771337438752,-1144.642687,8.219e-05,2]
[405819174,1771337438762,-1430.803359,8.219e-05,2]
[405819175,1771337438771,-150.0,8.219e-05,2]
[405819176,1771337438781,-311.510299,8.219e-05,2]
[405819177,1771337438790,-473.020599,8.219e-05,2]
[405819178,1771337438799,-634.530898,8.219e-05,2]
[405819179,1771337438809,-796.041198,8.219e-05,2]
[405819180,1771337438818,-957.551497,8.219e-05,2]
[405819181,1771337438827,-1119.061797,8.219e-05,2]